bitfinex/quotes_BTCUSD_20241116
["timestamp","ask_amount","ask_price","bid_price","bid_amount"]
[1731742540203,0.22369095,91239.0,91218.0,0.005]
[1731742540407,0.22369095,91239.0,91232.0,0.10961]
[1731742540615,0.16424047,91238.0,91232.0,0.109609]
[1731742540827,0.10906255,91237.0,91219.0,0.04921514]
[1731742541033,0.11408822,91237.0,91232.0,0.10961]
[1731742541237,0.11408822,91237.0,91229.0,0.219226]
[1731742541453,0.11408822,91237.0,91230.0,0.219226]
[1731742541649,0.11408822,91237.0,91232.0,0.109609]
[1731742541857,0.11408822,91237.0,91233.0,0.109608]
[1731742543256,0.11408822,91237.0,91232.0,0.0008569]
[1731742543457,0.11408822,91237.0,91234.0,0.109608]
[1731742543947,0.11408822,91237.0,91236.0,0.109605]
[1731742544910,0.10906255,91237.0,91236.0,0.109605]
[1731742545356,0.11408597,91237.0,91236.0,0.109605]
[1731742546225,0.11408597,91237.0,91236.0,0.15500967]
[1731742548833,0.11408597,91237.0,91232.0,0.0008569]
[1731742548834,0.0483,91236.0,91232.0,0.0008569]
[1731742549042,0.10906255,91235.0,91232.0,0.0008569]
[1731742549276,0.11408524,91235.0,91232.0,0.1104669]
[1731742549480,0.19130375,91233.0,91232.0,0.0008569]
[1731742549699,0.3824663,91233.0,91232.0,0.0008569]
[1731742549909,0.38748534,91233.0,91232.0,0.0008569]
[1731742550371,0.43568534,91233.0,91232.0,0.0008569]
[1731742551526,0.44068534,91233.0,91232.0,0.0008569]
[1731742553013,0.44568534,91233.0,91232.0,0.0008569]
[1731742553686,0.1255,91213.0,91205.0,0.16424047]
[1731742553902,0.1255,91213.0,91195.0,0.16424047]
[1731742553903,0.08169475,91206.0,91195.0,0.16424047]
[1731742554185,0.08169475,91201.0,91195.0,0.16424047]
[1731742554410,0.08169475,91201.0,91200.0,0.109649]
[1731742554633,0.10906255,91212.0,91195.0,0.04531246]
[1731742554634,0.0049992,91200.0,91199.0,0.10965]
[1731742554836,0.109642,91206.0,91199.0,0.10965]
[1731742555063,0.10906255,91205.0,91199.0,0.10965]
[1731742555269,0.109644,91204.0,91196.0,0.109653]
[1731742555494,0.18556255,91203.0,91194.0,0.109656]
[1731742555697,0.30019127,91203.0,91193.0,0.219313]
[1731742555919,0.30019127,91203.0,91186.0,0.04495895]
[1731742556152,0.19054627,91203.0,91186.0,0.04495895]
[1731742556390,0.10965,91199.0,91185.0,0.219334]
[1731742556609,0.10965,91199.0,91187.0,0.219329]
[1731742556610,0.10906255,91198.0,91187.0,0.219329]
[1731742556827,0.11402629,91198.0,91192.0,0.109658]
[1731742557040,0.11402629,91198.0,91193.0,0.109656]
[1731742558459,0.11402629,91198.0,91189.0,0.219324]
[1731742558663,0.11402629,91198.0,91192.0,0.109658]
[1731742559275,0.11402629,91198.0,91184.0,0.04629265]
[1731742559469,0.11402629,91198.0,91188.0,0.219327]
[1731742559673,0.11402629,91198.0,91185.0,0.1296]
[1731742559903,0.11402629,91198.0,91197.0,0.109652]
[1731742560140,0.10906255,91198.0,91197.0,0.109652]
[1731742562910,0.10906255,91198.0,91193.0,0.219313]
[1731742563380,0.10906255,91198.0,91197.0,0.109652]
[1731742563626,0.10906255,91198.0,91184.0,0.0008575]
[1731742563627,0.16424047,91195.0,91184.0,0.0008575]
[1731742563861,0.35645278,91198.0,91184.0,0.0008575]
[1731742563862,0.219324,91189.0,91184.0,0.0008575]
[1731742564081,0.109667,91185.0,91184.0,0.0008575]
[1731742564303,0.21872955,91185.0,91184.0,0.0008575]
[1731742566178,0.29522955,91185.0,91184.0,0.0008575]
[1731742567030,0.30016729,91185.0,91184.0,0.0008575]
[1731742567344,0.29726105,91185.0,91184.0,0.0008575]
[1731742570157,0.34286105,91185.0,91184.0,0.0008575]
[1731742570805,0.34786105,91185.0,91184.0,0.0008575]
[1731742571754,0.35286105,91185.0,91184.0,0.0008575]
[1731742575472,0.34286105,91185.0,91184.0,0.0008575]
[1731742576794,0.11400029,91185.0,91184.0,0.0008575]
[1731742577013,0.34825752,91185.0,91184.0,0.0008575]
[1731742577904,0.35711074,91185.0,91184.0,0.0008575]
[1731742578554,0.36609326,91185.0,91184.0,0.0008575]
[1731742580059,0.36610423,91185.0,91184.0,0.0008575]
[1731742580275,0.44250423,91185.0,91184.0,0.0008575]
[1731742580480,0.48981923,91185.0,91184.0,0.0008575]
[1731742580692,0.49981923,91185.0,91184.0,0.0008575]
[1731742581981,0.50181923,91185.0,91184.0,0.0008575]
[1731742582203,0.60181923,91185.0,91184.0,0.0008575]
[1731742582470,0.61601433,91185.0,91184.0,0.0008575]
[1731742582703,0.62841153,91185.0,91184.0,0.0008575]
[1731742583126,0.12959023,91178.0,91159.0,0.04574595]
[1731742583342,0.109688,91167.0,91159.0,0.04574595]
[1731742583558,0.14110436,91166.0,91159.0,0.04574595]
[1731742583764,0.03204181,91165.0,91159.0,0.04574595]
[1731742583981,0.14110436,91164.0,91162.0,0.109694]
[1731742584188,0.01784671,91163.0,91162.0,0.109694]
[1731742584406,0.14110436,91163.0,91162.0,0.109694]
[1731742584610,0.14600137,91163.0,91162.0,0.109694]
[1731742584820,0.12282375,91163.0,91162.0,0.109694]
[1731742585291,0.13182642,91163.0,91162.0,0.109694]
[1731742585943,0.12282375,91163.0,91162.0,0.109694]
[1731742586405,0.11395956,91163.0,91162.0,0.109694]
[1731742586624,0.1228382,91163.0,91162.0,0.109694]
[1731742586854,0.11395956,91163.0,91162.0,0.109694]
[1731742588822,0.1228411,91163.0,91162.0,0.109694]
[1731742589025,0.11395956,91163.0,91162.0,0.109694]
[1731742589645,0.10906255,91163.0,91162.0,0.109694]
[1731742590526,0.11794611,91163.0,91162.0,0.109694]
[1731742590735,0.11794611,91163.0,91159.0,0.04395281]
[1731742590943,0.11794611,91163.0,91160.0,0.219394]
[1731742590944,0.10906255,91162.0,91160.0,0.219394]
[1731742591156,0.10906255,91162.0,91161.0,0.109696]
[1731742591387,0.11794673,91162.0,91161.0,0.109696]
[1731742591593,0.12696215,91162.0,91161.0,0.109696]
[1731742592229,0.11794673,91162.0,91161.0,0.109696]
[1731742592439,0.12696913,91162.0,91161.0,0.109696]
[1731742592687,0.11794673,91162.0,91161.0,0.109696]
[1731742593313,0.11395651,91162.0,91161.0,0.109696]
[1731742593528,0.1318875,91162.0,91161.0,0.109696]
[1731742596583,0.1318914,91162.0,91161.0,0.109696]
[1731742597627,0.1318914,91162.0,91155.0,0.04487326]
[1731742597872,0.109697,91160.0,91155.0,0.0008581]
[1731742598101,0.12699744,91159.0,91155.0,0.0008581]
[1731742598355,0.01793489,91158.0,91155.0,0.0008581]
[1731742598578,0.12699744,91157.0,91155.0,0.0008581]
[1731742598787,0.01793489,91156.0,91155.0,0.0008581]
[1731742598983,0.12699744,91156.0,91155.0,0.0008581]
[1731742599197,0.13188709,91156.0,91155.0,0.0008581]
[1731742599413,0.12298128,91156.0,91155.0,0.0008581]
[1731742599840,0.1139522,91156.0,91155.0,0.0008581]
[1731742600066,0.12297978,91156.0,91155.0,0.0008581]
[1731742600286,0.1139522,91156.0,91155.0,0.1105611]
[1731742601196,0.10906255,91156.0,91155.0,0.1105611]
[1731742601438,0.0776,91173.0,91155.0,0.0008581]
[1731742601722,0.16424047,91163.0,91162.0,0.109694]
[1731742601938,0.10906255,91163.0,91162.0,0.109694]
[1731742603242,0.1247,91162.0,91155.0,0.0008581]
[1731742603454,0.109701,91157.0,91155.0,0.0008581]
[1731742603662,0.10906255,91156.0,91155.0,0.0008581]
[1731742603867,0.21876455,91156.0,91155.0,0.0008581]
[1731742605403,0.22364699,91156.0,91155.0,0.0008581]
[1731742605638,0.11394499,91156.0,91155.0,0.0008581]
[1731742607453,0.22364699,91156.0,91155.0,0.0008581]
[1731742608532,0.34834699,91156.0,91155.0,0.0008581]
[1731742611102,0.35334699,91156.0,91155.0,0.0008581]
[1731742612207,0.45834699,91156.0,91155.0,0.0008581]
[1731742613069,0.46034699,91156.0,91155.0,0.0008581]
[1731742613318,0.58145611,91156.0,91155.0,0.0008581]
[1731742613551,0.5272199,91156.0,91155.0,0.0008581]
[1731742614410,0.67429282,91156.0,91155.0,0.0008581]
[1731742614679,0.5272199,91156.0,91155.0,0.0008581]
[1731742614899,0.67430225,91156.0,91155.0,0.0008581]
[1731742615147,0.01,91141.0,91140.0,0.000857]
[1731742615374,0.58047278,91141.0,91140.0,0.000857]
[1731742615600,0.58531481,91141.0,91140.0,0.000857]
[1731742618686,0.45572458,91141.0,91140.0,0.000857]
[1731742620156,0.11390458,91141.0,91140.0,0.000857]
[1731742622367,0.11390458,91141.0,91140.0,0.110578]
[1731742622802,0.10906255,91141.0,91140.0,0.110578]
[1731742625036,0.10906255,91141.0,91140.0,0.23245432]
[1731742626857,0.21406255,91141.0,91140.0,0.000857]
[1731742627091,0.32918821,91141.0,91140.0,0.000857]
[1731742630084,0.32418821,91141.0,91140.0,0.000857]
[1731742630301,0.32918821,91141.0,91140.0,0.000857]
[1731742631483,0.32418821,91141.0,91140.0,0.000857]
[1731742631694,0.32918821,91141.0,91140.0,0.000857]
[1731742631959,0.11446821,91141.0,91140.0,0.110578]
[1731742632790,0.10906255,91141.0,91140.0,0.110578]
[1731742633206,0.10944971,91141.0,91140.0,0.110578]
[1731742634740,0.11459016,91141.0,91140.0,0.110578]
[1731742637665,0.11459016,91141.0,91140.0,0.23516823]
[1731742637898,0.00593271,91141.0,91140.0,0.23516823]
[1731742638119,0.0017156,91148.0,91147.0,0.109712]
[1731742638320,0.11077815,91148.0,91147.0,0.109712]
[1731742638527,0.11593546,91148.0,91147.0,0.109712]
[1731742639413,0.00687291,91148.0,91147.0,0.23430223]
[1731742640042,0.0017156,91148.0,91147.0,0.23430223]
[1731742640523,0.11077815,91148.0,91141.0,0.21944]
[1731742640789,0.00687291,91148.0,91147.0,0.109712]
[1731742641447,0.0017156,91148.0,91147.0,0.109712]
[1731742643806,0.11077815,91148.0,91147.0,0.109712]
[1731742644126,0.0017156,91148.0,91147.0,0.109712]
[1731742646490,0.0017156,91148.0,91147.0,0.265412]
[1731742647554,0.0017156,91148.0,91147.0,0.43496112]
[1731742648249,0.0017156,91148.0,91147.0,0.42996112]
[1731742648447,0.0017156,91148.0,91147.0,0.43496112]
[1731742653278,0.0017156,91148.0,91147.0,0.43506199]
[1731742653709,0.0017156,91148.0,91147.0,0.54412454]
[1731742653958,0.0017156,91148.0,91147.0,0.66871477]
[1731742656461,0.0017156,91148.0,91147.0,0.54412454]
[1731742656861,0.0017156,91148.0,91147.0,0.66871477]
[1731742657104,0.0017156,91148.0,91147.0,0.67071477]
[1731742658157,0.0017156,91148.0,91147.0,0.66871477]
[1731742659211,0.0017154,91159.0,91147.0,0.66871477]
[1731742659212,0.0017154,91159.0,91158.0,0.114699]
[1731742659470,0.0017154,91159.0,91158.0,0.39218923]
[1731742659674,0.0017154,91159.0,91158.0,0.39418923]
[1731742660313,0.0017154,91159.0,91158.0,0.39218923]
[1731742661903,0.0017154,91159.0,91158.0,0.39418923]
[1731742663587,0.0017154,91159.0,91158.0,0.39918923]
[1731742664861,0.0017154,91159.0,91158.0,0.44454724]
[1731742666165,0.0017154,91159.0,91158.0,0.44254724]
[1731742668364,0.0017154,91159.0,91158.0,0.44454724]
[1731742669873,0.0017154,91159.0,91158.0,0.31464724]
[1731742671652,0.0017154,91159.0,91158.0,0.31264724]
[1731742671856,0.0017154,91159.0,91158.0,0.27964724]
[1731742672120,0.0017154,91159.0,91158.0,0.28464724]
[1731742672955,0.0017154,91159.0,91158.0,0.27964724]
[1731742673129,0.0017154,91159.0,91158.0,0.28464724]
[1731742674333,0.0017154,91159.0,91158.0,0.27964724]
[1731742675058,0.0017154,91159.0,91158.0,0.28464724]
[1731742675329,0.0017154,91159.0,91158.0,0.27964724]
[1731742675930,0.0017154,91159.0,91158.0,0.28464724]
[1731742677190,0.0017154,91159.0,91158.0,0.31264724]
[1731742679430,0.0017154,91159.0,91158.0,0.18805701]
[1731742685618,0.0017154,91159.0,91158.0,0.16505701]
[1731742688304,0.0017154,91159.0,91158.0,0.26325404]
[1731742688668,0.0017154,91159.0,91158.0,0.16505701]
[1731742689416,0.0017154,91159.0,91158.0,0.65252319]
[1731742689913,0.0017154,91159.0,91158.0,0.50522764]
[1731742691197,0.0017154,91159.0,91158.0,0.6528542]
[1731742691421,0.0017154,91159.0,91158.0,0.50522764]
[1731742692356,0.0017154,91159.0,91158.0,0.7016217]
[1731742693697,0.0017154,91159.0,91158.0,0.70321098]
[1731742695570,0.0017154,91159.0,91158.0,0.50625328]
[1731742696966,0.0017154,91159.0,91158.0,0.50125328]
[1731742697184,0.0017154,91159.0,91158.0,0.30781556]
[1731742697474,0.0017154,91159.0,91158.0,0.25856571]
[1731742698148,0.0017154,91159.0,91158.0,0.16005701]
[1731742698355,0.0017154,91159.0,91158.0,0.25856571]
[1731742698974,0.0017154,91159.0,91158.0,0.16005701]
[1731742699412,0.0017154,91159.0,91158.0,0.26356571]
[1731742699613,0.0017154,91159.0,91158.0,0.65333733]
[1731742699737,0.0017154,91159.0,91158.0,0.39587978]
[1731742699962,0.0017154,91159.0,91158.0,0.21320309]
[1731742700420,0.0017154,91159.0,91158.0,0.114699]
[1731742700758,0.0017154,91159.0,91158.0,0.21320309]
[1731742700974,0.0017154,91159.0,91158.0,0.114699]
[1731742702064,0.0017154,91159.0,91158.0,0.15376706]
[1731742703137,0.0017154,91159.0,91158.0,0.15876706]
[1731742707435,0.0017154,91159.0,91158.0,0.25727115]
[1731742707642,0.0017154,91159.0,91158.0,0.15876706]
[1731742708772,0.0017154,91159.0,91158.0,0.25727115]
[1731742709895,0.0017154,91159.0,91158.0,0.30652463]
[1731742710129,0.0017154,91159.0,91158.0,0.15876706]
[1731742710795,0.0017154,91159.0,91158.0,0.15376706]
[1731742711019,0.0017154,91159.0,91158.0,0.24055529]
[1731742712388,0.0017154,91159.0,91158.0,0.43760418]
[1731742712658,0.0017154,91159.0,91158.0,0.24055529]
[1731742712876,0.0017154,91159.0,91158.0,0.26355529]
[1731742713503,0.0017154,91159.0,91158.0,0.50986641]
[1731742715052,0.0017154,91159.0,91158.0,0.84524301]
[1731742717718,0.0017154,91159.0,91158.0,0.59893189]
[1731742718130,0.0017154,91159.0,91158.0,0.84533781]
[1731742719395,0.0017154,91159.0,91158.0,0.74054958]
[1731742719628,0.0836154,91159.0,91158.0,0.82233781]
[1731742719853,0.0836154,91159.0,91158.0,0.57593189]
[1731742722335,0.0836154,91159.0,91158.0,0.57678939]
[1731742723032,0.0836154,91159.0,91158.0,0.30249957]
[1731742723253,0.0836154,91159.0,91158.0,0.15462456]
[1731742723458,0.0836154,91159.0,91158.0,0.25320469]
[1731742725617,0.0836154,91159.0,91158.0,0.15462456]
[1731742726752,0.19267795,91159.0,91158.0,0.15462456]
[1731742727190,0.19907519,91159.0,91158.0,0.15462456]
[1731742741764,0.20034771,91159.0,91158.0,0.15462456]
[1731742743500,0.20034771,91159.0,91156.0,0.219402]
[1731742743501,0.20034771,91159.0,91156.0,0.1647041]
[1731742743722,0.09128516,91159.0,91158.0,0.109699]
[1731742743957,0.09000867,91159.0,91158.0,0.109699]
[1731742744642,0.19907122,91159.0,91158.0,0.109699]
[1731742756850,0.19907122,91159.0,91156.0,0.15610109]
[1731742757064,0.10906255,91158.0,91156.0,0.04640009]
[1731742757269,0.11546378,91158.0,91156.0,0.15610109]
[1731742757667,0.11546378,91158.0,91157.0,0.1097]
[1731742758728,0.11546378,91158.0,91156.0,0.0008575]
[1731742758922,0.2396,91157.0,91156.0,0.0008575]
[1731742759141,0.34866255,91157.0,91156.0,0.0008575]
[1731742759340,0.24370741,91157.0,91156.0,0.0008575]
[1731742761205,0.35340741,91157.0,91156.0,0.0008575]
[1731742767283,0.44519564,91157.0,91156.0,0.0008575]
[1731742767521,0.80783833,91157.0,91156.0,0.0008575]
[1731742768390,0.36502336,91157.0,91156.0,0.0008575]
[1731742768613,0.51234028,91157.0,91156.0,0.0008575]
[1731742769461,0.36502336,91157.0,91156.0,0.0008575]
[1731742769883,0.42530821,91157.0,91156.0,0.0008575]
[1731742770142,0.36702336,91157.0,91156.0,0.0008575]
[1731742770349,0.46516961,91157.0,91156.0,0.0008575]
[1731742770572,0.46316961,91157.0,91156.0,0.0008575]
[1731742771045,0.50789474,91157.0,91156.0,0.0008575]
[1731742772353,0.40974849,91157.0,91156.0,0.0008575]
[1731742776571,0.36002336,91157.0,91156.0,0.0008575]
[1731742777012,0.36288197,91157.0,91156.0,0.0008575]
[1731742778146,0.36288197,91157.0,91138.0,0.219445]
[1731742778147,0.109713,91147.0,91138.0,0.109722]
[1731742778370,0.10906255,91146.0,91139.0,0.109721]
[1731742778614,0.1182758,91146.0,91139.0,0.109721]
[1731742778835,0.1182758,91146.0,91140.0,0.109721]
[1731742779042,0.1182758,91146.0,91145.0,0.109715]
[1731742779258,0.10906255,91146.0,91136.0,0.1255]
[1731742779709,0.10906255,91146.0,91145.0,0.109715]
[1731742784939,0.10906255,91146.0,91145.0,0.15396828]
[1731742790985,0.10906255,91146.0,91145.0,0.23575651]
[1731742792502,0.10906255,91146.0,91145.0,0.23661401]
[1731742800470,0.10906255,91146.0,91145.0,0.15482578]
[1731742801140,0.10906255,91146.0,91145.0,0.04511078]
[1731742801362,0.10906255,91146.0,91145.0,0.0008575]
[1731742801586,0.11981967,91146.0,91145.0,0.0008575]
[1731742802233,0.22953367,91146.0,91145.0,0.0008575]
[1731742802439,0.11981967,91146.0,91145.0,0.0008575]
[1731742802651,0.22953367,91146.0,91145.0,0.0008575]
[1731742802880,0.11981967,91146.0,91145.0,0.0008575]
[1731742805050,0.23624907,91146.0,91145.0,0.0008575]
[1731742805275,0.24530006,91146.0,91145.0,0.0008575]
[1731742805995,0.23624907,91146.0,91145.0,0.0008575]
[1731742807376,0.12153507,91146.0,91145.0,0.0008575]
[1731742811564,0.12153507,91146.0,91145.0,0.1105725]
[1731742812033,0.11077795,91146.0,91145.0,0.1105725]
[1731742812548,0.12153239,91146.0,91145.0,0.1105725]
[1731742814158,0.13058879,91146.0,91145.0,0.1105725]
[1731742814369,0.12153239,91146.0,91145.0,0.1105725]
[1731742820968,0.12153239,91146.0,91145.0,0.0008575]
[1731742821219,0.12153239,91146.0,91145.0,0.1105725]
[1731742821439,0.12153239,91146.0,91145.0,0.1335725]
[1731742821918,0.11077795,91146.0,91145.0,0.1335725]
[1731742822147,0.12152371,91146.0,91145.0,0.1335725]
[1731742823495,0.01246116,91146.0,91145.0,0.21536073]
[1731742823707,0.0017154,91146.0,91145.0,0.41082754]
[1731742823920,0.0017154,91146.0,91145.0,0.26306073]
[1731742824359,0.0017154,91146.0,91145.0,0.41082754]
[1731742825110,0.0017154,91146.0,91145.0,0.1812725]
[1731742825320,0.0017154,91146.0,91145.0,0.36165163]
[1731742825818,0.0017154,91146.0,91145.0,0.26306073]
[1731742828531,0.0017154,91146.0,91145.0,0.36164351]
[1731742828758,0.0017154,91146.0,91145.0,0.21536073]
[1731742830053,0.0017154,91146.0,91145.0,0.31393725]
[1731742830264,0.0017154,91146.0,91145.0,0.21536073]
[1731742830695,0.34799195,91146.0,91145.0,0.0008575]
[1731742830905,0.36452074,91146.0,91145.0,0.0008575]
[1731742831429,0.37343976,91146.0,91145.0,0.0008575]
[1731742831849,0.38791157,91146.0,91145.0,0.0008575]
[1731742832085,0.40217648,91146.0,91145.0,0.0008575]
[1731742833466,0.38770467,91146.0,91145.0,0.0008575]
[1731742833923,0.27799067,91146.0,91145.0,0.0008575]
[1731742834137,0.37343976,91146.0,91145.0,0.0008575]
[1731742834581,0.35547312,91146.0,91145.0,0.0008575]
[1731742834791,0.26371481,91146.0,91145.0,0.0008575]
[1731742835044,0.36451535,91146.0,91145.0,0.0008575]
[1731742835493,0.25480135,91146.0,91145.0,0.0008575]
[1731742836130,0.36451535,91146.0,91145.0,0.0008575]
[1731742843421,0.36267457,91146.0,91145.0,0.0008575]
[1731742844353,0.35456404,91146.0,91145.0,0.0008575]
[1731742844585,0.36360064,91146.0,91145.0,0.0008575]
[1731742852800,0.35456404,91146.0,91145.0,0.0008575]
[1731742853510,0.36360064,91146.0,91145.0,0.0008575]
[1731742857872,0.36360064,91146.0,91128.0,0.08178823]
[1731742857873,0.24485004,91146.0,91128.0,0.08178823]
[1731742858121,0.109717,91144.0,91132.0,0.10973]
[1731742858338,0.10906255,91143.0,91132.0,0.10973]
[1731742858573,0.11564288,91143.0,91132.0,0.10973]
[1731742858788,0.109719,91142.0,91130.0,0.109732]
[1731742859006,0.10906255,91141.0,91130.0,0.109732]
[1731742859896,0.10906255,91141.0,91128.0,0.12729285]
[1731742860108,0.10906255,91141.0,91129.0,0.219469]
[1731742860323,0.10906255,91141.0,91128.0,0.12729285]
[1731742860549,0.21878255,91141.0,91131.0,0.109731]
[1731742860768,0.109721,91140.0,91129.0,0.109734]
[1731742861003,0.10906255,91139.0,91128.0,0.12729285]
[1731742861226,0.10906255,91139.0,91129.0,0.109733]
[1731742862097,0.00469912,91138.0,91129.0,0.109733]
[1731742862342,0.10906255,91137.0,91129.0,0.109733]
[1731742862783,0.0046943,91136.0,91130.0,0.109733]
[1731742862998,0.10906255,91135.0,91130.0,0.109733]
[1731742863226,0.00468949,91134.0,91132.0,0.0008577]
[1731742863454,0.10906255,91133.0,91132.0,0.0008577]
[1731742864162,0.11374963,91133.0,91132.0,0.0008577]
[1731742873619,0.11471077,91133.0,91132.0,0.0008577]
[1731742873896,0.11471077,91133.0,91132.0,0.00079603]
[1731742876152,0.10906255,91133.0,91132.0,0.00079603]
[1731742876632,0.11374963,91133.0,91132.0,0.00079603]
[1731742876848,0.11471077,91133.0,91132.0,0.00079603]
[1731742877280,0.11400784,91133.0,91132.0,0.00079603]
[1731742877696,0.10906255,91133.0,91132.0,0.00079603]
[1731742880067,0.10906255,91133.0,91132.0,0.11052603]
[1731742880301,0.10906255,91133.0,91132.0,0.00079603]
[1731742880527,0.10906255,91133.0,91132.0,0.11052603]
[1731742880760,0.10906255,91133.0,91132.0,0.00079603]
[1731742883690,0.1211792,91133.0,91132.0,0.00079603]
[1731742884827,0.1211792,91133.0,91130.0,0.09776818]
[1731742885045,0.10906255,91133.0,91130.0,0.09776818]
[1731742885489,0.01211549,91132.0,91130.0,0.09776818]
[1731742885708,0.10906255,91131.0,91130.0,0.09776818]
[1731742886350,0.12117689,91131.0,91130.0,0.09776818]
[1731742886573,0.12117689,91131.0,91130.0,0.09862558]
[1731742887277,0.12117689,91131.0,91130.0,0.0008574]
[1731742887527,0.12117689,91131.0,91130.0,0.1105904]
[1731742887759,0.12117689,91131.0,91130.0,0.25857599]
[1731742887985,0.10906255,91131.0,91130.0,0.25857599]
[1731742888651,0.10906255,91131.0,91130.0,0.25857551]
[1731742889718,0.10906255,91131.0,91130.0,0.28157551]
[1731742889931,0.10906255,91131.0,91130.0,0.62407073]
[1731742891429,0.0017148,91133.0,91132.0,0.13273]
[1731742891634,0.0017148,91133.0,91132.0,0.36249734]
[1731742891893,0.0017148,91133.0,91132.0,0.55701345]
[1731742899609,0.44019458,91133.0,91132.0,0.34249522]
[1731742899878,0.44019458,91133.0,91130.0,0.0008574]
[1731742899879,0.114732,91131.0,91130.0,0.0008574]
[1731742900093,0.36169455,91131.0,91130.0,0.0008574]
[1731742900304,0.72563979,91131.0,91130.0,0.0008574]
[1731742900534,0.36169455,91131.0,91130.0,0.0008574]
[1731742900777,0.46023223,91131.0,91130.0,0.0008574]
[1731742901221,0.36169455,91131.0,91130.0,0.0008574]
[1731742901926,0.11810682,91131.0,91130.0,0.0008574]
[1731742902167,0.11810682,91131.0,91130.0,0.08264563]
[1731742902623,0.10906255,91131.0,91130.0,0.08264563]
[1731742903517,0.11621806,91131.0,91130.0,0.0008574]
[1731742904476,0.11621806,91131.0,91130.0,0.1105904]
[1731742904709,0.11621806,91131.0,91130.0,0.0008574]
[1731742904918,0.10906255,91131.0,91130.0,0.0008574]
[1731742905583,0.10906255,91131.0,91130.0,0.1105904]
[1731742906446,0.10906255,91131.0,91130.0,0.0008574]
[1731742907085,0.11374481,91131.0,91130.0,0.0008574]
[1731742909148,0.22347681,91131.0,91130.0,0.0008574]
[1731742909358,0.36137681,91131.0,91130.0,0.0008574]
[1731742910281,0.36309181,91131.0,91130.0,0.0008574]
[1731742917166,0.37211889,91131.0,91130.0,0.0008574]
[1731742917587,0.36309181,91131.0,91130.0,0.0008574]
[1731742918245,0.36438508,91131.0,91130.0,0.0008574]
[1731742920666,0.36341303,91131.0,91130.0,0.0008574]
[1731742921127,0.37243625,91131.0,91130.0,0.0008574]
[1731742921339,0.36341303,91131.0,91130.0,0.0008574]
[1731742922017,0.37243625,91131.0,91130.0,0.0008574]
[1731742924496,0.3724348,91131.0,91130.0,0.0008574]
[1731742930828,0.37244168,91131.0,91130.0,0.0008574]
[1731742934279,0.36341303,91131.0,91130.0,0.0008574]
[1731742934529,0.37244097,91131.0,91130.0,0.0008574]
[1731742934747,0.36341303,91131.0,91130.0,0.0008574]
[1731742934971,0.372441,91131.0,91130.0,0.0008574]
[1731742935435,0.377441,91131.0,91130.0,0.0008574]
[1731742935647,0.36841303,91131.0,91130.0,0.0008574]
[1731742935930,0.37744116,91131.0,91130.0,0.0008574]
[1731742939038,0.38634406,91131.0,91130.0,0.0008574]
[1731742939254,0.37744116,91131.0,91130.0,0.0008574]
[1731742939474,0.38634534,91131.0,91130.0,0.0008574]
[1731742940148,0.37744116,91131.0,91130.0,0.0008574]
[1731742941373,0.52472195,91131.0,91130.0,0.0008574]
[1731742941445,0.48064075,91131.0,91130.0,0.0008574]
[1731742941662,0.53172243,91131.0,91130.0,0.0008574]
[1731742941871,0.38244116,91131.0,91130.0,0.0008574]
[1731742942083,0.7469214,91131.0,91130.0,0.0008574]
[1731742943187,0.94329579,91131.0,91130.0,0.0008574]
[1731742943397,0.7469214,91131.0,91130.0,0.0008574]
[1731742943608,0.94329579,91131.0,91130.0,0.0008574]
[1731742944503,0.7469214,91131.0,91130.0,0.0008574]
[1731742945168,0.8469214,91131.0,91130.0,0.0008574]
[1731742945383,1.04337523,91131.0,91130.0,0.0008574]
[1731742945613,0.84692321,91131.0,91130.0,0.0008574]
[1731742945842,0.83789327,91131.0,91130.0,0.0008574]
[1731742946074,0.8469233,91131.0,91130.0,0.0008574]
[1731742946573,0.84692233,91131.0,91130.0,0.0008574]
[1731742947252,0.84692215,91131.0,91130.0,0.0008574]
[1731742947483,0.84492215,91131.0,91130.0,0.0008574]
[1731742947715,0.005,91108.0,91101.0,0.06196334]
[1731742948022,0.21882355,91107.0,91101.0,0.10682622]
[1731742948249,0.10906255,91107.0,91101.0,0.04486288]
[1731742948456,0.00492954,91106.0,91101.0,0.04486288]
[1731742948660,0.10906255,91105.0,91099.0,0.0458]
[1731742948873,0.10906255,91105.0,91104.0,0.08178823]
[1731742949131,0.10906255,91105.0,91104.0,0.19155223]
[1731742949341,0.10906255,91105.0,91104.0,0.08178823]
[1731742950007,0.10906255,91105.0,91104.0,0.19155223]
[1731742950667,0.10906255,91105.0,91104.0,0.08178823]
[1731742950874,0.10906255,91105.0,91104.0,0.19155223]
[1731742951287,0.10906255,91105.0,91104.0,0.08178823]
[1731742951515,0.10906255,91105.0,91104.0,0.19155223]
[1731742951752,0.005,91122.0,91106.0,0.0482]
[1731742951972,0.005,91122.0,91112.0,0.132755]
[1731742951973,0.16424047,91113.0,91112.0,0.132755]
[1731742952183,0.27330302,91113.0,91112.0,0.132755]
[1731742952410,0.10906255,91113.0,91112.0,0.132755]
[1731742952859,0.10906255,91113.0,91112.0,0.263855]
[1731742953274,0.10906255,91113.0,91107.0,0.023]
[1731742953508,0.10906255,91112.0,91110.0,0.023]
[1731742953709,0.00494311,91111.0,91110.0,0.023]
[1731742953922,0.11400566,91111.0,91109.0,0.023]
[1731742954143,0.10906255,91110.0,91109.0,0.132758]
[1731742957924,0.10906255,91110.0,91109.0,0.023]
[1731742958352,0.1140045,91110.0,91109.0,0.023]
[1731742958559,0.1140045,91110.0,91109.0,0.132758]
[1731742959484,0.10906255,91110.0,91109.0,0.132758]
[1731742963182,0.10906255,91110.0,91109.0,0.180358]
[1731742965324,0.10906255,91110.0,91109.0,0.132758]
[1731742970805,0.10906255,91110.0,91109.0,0.109758]
[1731742975899,0.10906255,91110.0,91108.0,0.08178823]
[1731742975900,0.10906255,91110.0,91108.0,0.109759]
[1731742976107,0.10906255,91110.0,91109.0,0.109758]
[1731742976739,0.005,91123.0,91108.0,0.08178823]
[1731742976950,0.10906255,91119.0,91116.0,0.08178823]
[1731742979109,0.10906255,91119.0,91116.0,0.19153723]
[1731742979314,0.10906255,91119.0,91116.0,0.08178823]
[1731742980444,0.11077795,91119.0,91116.0,0.08178823]
[1731742981729,0.11077795,91119.0,91111.0,0.21951]
[1731742981957,0.11077795,91119.0,91117.0,0.08178823]
[1731742984250,0.11077795,91119.0,91118.0,0.109747]
[1731742989035,0.0017154,91119.0,91118.0,0.109747]
[1731742995651,0.0017154,91119.0,91118.0,0.260147]
[1731742996094,0.0017154,91119.0,91118.0,0.35865864]
[1731742996308,0.0017154,91119.0,91118.0,0.34193523]
[1731742996743,0.0017154,91119.0,91118.0,0.65983884]
[1731742997376,0.0017154,91119.0,91118.0,0.48962698]
[1731742998237,0.0017154,91119.0,91118.0,0.34193523]
[1731742999335,0.0017154,91119.0,91118.0,0.66402795]
[1731742999544,0.0017154,91119.0,91118.0,0.66602795]